Workbook

Sheet Меню ГПД
B2: Утверждаю __________________Харламова Э.Р. | H2: Согласовано __________________________
B3: Директор ООО "ФУДСОЦСЕРВИС" | H3: Руководитель образовательного учреждения
B5: Примерное цикличное двенадцатидневное меню для учащихся образовательных учреждений Республики Татарстан
A6: № Сб.рец | B6: Наименование продуктов | C6: Выход,г | D6: Белки | E6: Жиры | F6: Угл-ды | G6: Энер.ценность (ККАЛ) | H6: В1 | I6: С | J6: А | K6: Е | L6: Са | M6: Р | N6: Mg | O6: Fe
B7: ПОНЕДЕЛЬНИК
A8: № 96,105 Сбор.рец. На прод-ию для обуч. Во всех образ.учреж-Дели 2017 | B8: Рассольник Ленинградский, с куриными фрикадельками, со сметаной | C8: 250/10/5 | D8: 3.51 | E8: 7.16 | F8: 12.96 | G8: 135.95 | H8: 0.10 | I8: 8.50 | J8: 8.98 | K8: 2.39 | L8: 38.15 | M8: 70.19 | N8: 26.07 | O8: 1.05
A9: ТТК | B9: Компот из свежих яблок с июзмом | C9: 200 | D9: 0.25 | E9: 0.12 | F9: 28.87 | G9: 118.40 | H9: 0.02 | I9: 0.45 | J9: 0.00 | K9: 0.08 | L9: 17.25 | M9: 11.88 | N9: 6.63 | O9: 0.70
A10: табл 6 стр 134,144,Хим. Состав и калорийность российских продуктов питания Дели + 2012 | B10: Хлеб ржаной | C10: 30 | D10: 1.98 | E10: 0.36 | F10: 11.88 | G10: 59.40 | H10: 0.05 | I10: 0.00 | J10: 0.00 | K10: 0.42 | L10: 8.70 | M10: 45.00 | N10: 14.10 | O10: 1.17
B11: Итого: | C11: 495 | D11: =D9+D8+D10 -> 5.74 | E11: =E9+E8+E10 -> 7.64 | F11: 53.70 | G11: 313.75 | H11: 0.17 | I11: 8.95 | J11: 8.98 | K11: 2.89 | L11: 64.10 | M11: 127.07 | N11: 46.80 | O11: 2.92
B13: ВТОРНИК
A14: № 113 Сбор.рец. На прод-ию для обуч. Во всех образ.учреж-Дели 2017 | B14: Суп-лапша домашняя с мясом птицы | C14: 250/10 | D14: 4.91 | E14: 7.40 | F14: 11.65 | G14: 141.95 | H14: 0.05 | I14: 0.74 | J14: 18.32 | K14: 2.67 | L14: 33.91 | M14: 54.90 | N14: 12.70 | O14: 0.84
A15: ТТК составлена на основании акта проработки 2019 г от 29.10.19 | B15: Напиток из шиповника | C15: 200 | D15: 0.68 | E15: 0.28 | F15: 20.76 | G15: 88.20 | H15: 0.01 | I15: 100.00 | J15: 0.00 | K15: 0.76 | L15: 21.34 | M15: 3.44 | N15: 3.44 | O15: 0.63
A16: табл 6 стр 134,144,Хим. Состав и калорийность российских продуктов питания Дели + 2012 | B16: Хлеб ржаной | C16: 30 | D16: 1.98 | E16: 0.36 | F16: 11.88 | G16: 59.40 | H16: 0.05 | I16: 0.00 | J16: 0.00 | K16: 0.42 | L16: 8.70 | M16: 45.00 | N16: 14.10 | O16: 1.17
B17: Итого: | C17: 490 | D17: =D14+D15+D16 -> 7.56 | E17: =E14+E15+E16 -> 8.04 | F17: 44.29 | G17: 289.55 | H17: 0.12 | I17: 100.74 | J17: 18.32 | K17: 3.85 | L17: 63.95 | M17: 103.34 | N17: 30.24 | O17: 2.64
B19: СРЕДА
A20: №155 Сбор.рец. На прод-ию для обуч. Во всех образ.учреж-Дели 2015 | B20: Шулпа с мясом | C20: 250/10 | D20: 6.36 | E20: 4.97 | F20: 18.84 | G20: 159.08 | H20: 0.11 | I20: 5.80 | J20: 21.05 | K20: 1.68 | L20: 34.68 | M20: 95.14 | N20: 28.32 | O20: 1.41
A22: № 348 Сбор.рец. На прод-ию для обуч. Во всех образ.учреж-Дели 2017 | B22: Компот из урюка | C22: 200 | D22: 0.75 | E22: 0.06 | F22: 27.93 | G22: 116.4 | H22: 0.016 | I22: 0.6 | J22: 0 | K22: 0.826 | L22: 33.22 | M22: 22.8 | N22: 18.16 | O22: 0.48
A23: табл 6 стр 134,144,Хим. Состав и калорийность российских продуктов питания Дели + 2012 | B23: Хлеб ржаной | C23: 30 | D23: 1.98 | E23: 0.36 | F23: 11.88 | G23: 59.40 | H23: 0.05 | I23: 0.00 | J23: 0.00 | K23: 0.42 | L23: 8.70 | M23: 45.00 | N23: 14.10 | O23: 1.17
B24: Итого: | C24: 490 | D24: =D22+D20+D23 -> 9.09 | E24: =E22+E20+E23 -> 5.39 | F24: 58.65 | G24: 334.88 | H24: 0.18 | I24: 6.40 | J24: 21.05 | K24: 2.92 | L24: 76.60 | M24: 162.94 | N24: 60.58 | O24: 3.06
B26: ЧЕТВЕРГ
A27: №98 Сбор.рец. На прод-ию для обуч. Во всех образ.учреж-Дели 2017 | B27: Суп крестьянский с крупой (пшено) с куриными фрикадельками, со сметаной | C27: 250/10/5 | D27: 2.98 | E27: 6.99 | F27: 7.07 | G27: 104.95 | H27: 0.05 | I27: 10.00 | J27: 8.98 | K27: 2.34 | L27: 44.88 | M27: 47.04 | N27: 16.07 | O27: 0.70
A29: №376 Сбор.рец. На прод-ию для обуч. Во всех образ.учреж-Дели 2017 | B29: Чай с мармеладом | C29: 190/10 | D29: 0.11 | E29: 0.02 | F29: 12.73 | G29: 51.30 | H29: 0.00 | I29: 0.10 | J29: 0.00 | K29: 0.00 | L29: 4.87 | M29: 3.65 | N29: 2.35 | O29: 0.43
A30: табл 6 стр 134,144,Хим. Состав и калорийность российских продуктов питания Дели + 2012 | B30: Хлеб ржаной | C30: 30 | D30: 1.98 | E30: 0.36 | F30: 11.88 | G30: 59.40 | H30: 0.05 | I30: 0.00 | J30: 0.00 | K30: 0.42 | L30: 8.70 | M30: 45.00 | N30: 14.10 | O30: 1.17
B31: Итого: | C31: 495 | D31: =D29+D27+D30 -> 5.07 | E31: =E29+E27+E30 -> 7.37 | F31: 31.68 | G31: 215.65 | H31: 0.10 | I31: 10.10 | J31: 8.98 | K31: 2.76 | L31: 58.45 | M31: 95.69 | N31: 32.51 | O31: 2.29
B34: ПЯТНИЦА
A35: № 115 Сбор.рец. На прод-ию для обуч. Во всех образ.учреж-Дели 2017 | B35: Харчо с мясом птицы, со сметаной | C35: 250/10/5 | D35: 3.05 | E35: 7.41 | F35: 1.94 | G35: 85.55 | H35: 0.02 | I35: 1.01 | J35: 10.82 | K35: 2.36 | L35: 31.76 | M35: 31.98 | N35: 8.00 | O35: 0.40
A37: № 349 Сбор.рец. На прод-ию для обуч. Во всех образ.учреж-Дели 2017 | B37: Компот из сухофруктов | C37: 200 | D37: 0.83 | E37: 0.11 | F37: 40.02 | G37: 166.00 | H37: 0.02 | I37: 0.91 | J37: 0.00 | K37: 0.64 | L37: 40.60 | M37: 29.30 | N37: 21.83 | O37: 0.87
A38: табл 6 стр 134,144,Хим. Состав и калорийность российских продуктов питания Дели + 2012 | B38: Хлеб ржаной | C38: 30 | D38: 1.98 | E38: 0.36 | F38: 11.88 | G38: 59.40 | H38: 0.05 | I38: 0.00 | J38: 0.00 | K38: 0.42 | L38: 8.70 | M38: 45.00 | N38: 14.10 | O38: 1.17
B39: Итого: | C39: 495 | D39: =D37+D35+D38 -> 5.86 | E39: =E37+E35+E38 -> 7.88 | F39: 53.83 | G39: 310.95 | H39: 0.09 | I39: 1.91 | J39: 10.82 | K39: 3.41 | L39: 81.06 | M39: 106.28 | N39: 43.93 | O39: 2.44
B40: СУББОТА
A41: № 82 Сбор.рец. На прод-ию для обуч. Во всех образ.учреж-Дели 2017 | B41: Борщ из свежей капусты с мясными фрикадельками, со сметаной | C41: 250/10/5 | D41: 4.27 | E41: 7.53 | F41: 11.15 | G41: 138.05 | H41: 0.06 | I41: 10.93 | J41: 10.82 | K41: 2.51 | L41: 59.49 | M41: 74.05 | N41: 28.60 | O41: 1.42
A43: № 376 Сбор.рец. На прод-ию для обуч. Во всех образ.учреж-Дели 2017 | B43: Чай с сахаром | C43: 190/10 | D43: 0.07 | E43: 0.02 | F43: 15 | G43: 60.00 | I43: 0.03 | L43: 11.1 | M43: 2.8 | N43: 1.4 | O43: 0.28
A44: табл 6 стр 134,144,Хим. Состав и калорийность российских продуктов питания Дели + 2012 | B44: Хлеб ржаной | C44: 30 | D44: 1.98 | E44: 0.36 | F44: 11.88 | G44: 59.40 | H44: 0.05 | I44: 0.00 | J44: 0.00 | K44: 0.42 | L44: 8.70 | M44: 45.00 | N44: 14.10 | O44: 1.17
B45: Итого: | C45: 495 | D45: =D43+D41+D44 -> 6.32 | E45: =E43+E41+E44 -> 7.91 | F45: 38.03 | G45: 257.45 | H45: 0.11 | I45: 10.96 | J45: 10.82 | K45: 2.93 | L45: 79.29 | M45: 121.85 | N45: 44.10 | O45: 2.87
B47: Всего за 6 дней 1 недели: | C47: =C11+C17+C24+C31+C39+C45 -> 2960 | D47: =D11+D17+D24+D31+D39+D45 -> 39.64 | E47: =E11+E17+E24+E31+E39+E45 -> 44.22 | F47: 280.18 | G47: 1722.24 | H47: 0.76 | I47: 139.06 | J47: 78.97 | K47: 18.75 | L47: 423.45 | M47: 717.16 | N47: 258.16 | O47: 16.22
A54: 2 неделя
B55: ПОНЕДЕЛЬНИК
A56: № 88 Сбор.рец. На прод-ию для обуч. Во всех образ.учреж-Дели 2017 | B56: Суп картофельный с вермишелью, с куриными фрикадельками | C56: 250/10 | D56: 4.05 | E56: 4.16 | F56: 18.25 | G56: 138.85 | H56: 0.12 | I56: 8.35 | J56: 3.98 | K56: 1.45 | L56: 33.80 | M56: 77.99 | N56: 28.72 | O56: 1.24
A58: № 377 Сбор.рец. На прод-ию для обуч. Во всех образ.учреж-Дели 2017 | B58: Чай с сахаром и лимоном | C58: 185/10/5 | D58: 0.112 | E58: 0.018 | F58: 10.15 | G58: 41.32 | I58: 2.03 | J58: 0 | K58: 0.006 | L58: 13.25 | M58: 3.96 | N58: 2.16 | O58: 0.333
A59: табл 6 стр 134,144,Хим. Состав и калорийность российских продуктов питания Дели + 2012 | B59: Хлеб ржаной | C59: 30 | D59: 1.98 | E59: 0.36 | F59: 11.88 | G59: 59.40 | H59: 0.05 | I59: 0.00 | J59: 0.00 | K59: 0.42 | L59: 8.70 | M59: 45.00 | N59: 14.10 | O59: 1.17
B60: Итого: | C60: 490 | D60: =D58+D56+D59 -> 6.14 | E60: =E58+E56+E59 -> 4.54 | F60: 40.28 | G60: 239.57 | H60: 0.17 | I60: 10.38 | J60: 3.98 | K60: 1.87 | L60: 55.75 | M60: 126.95 | N60: 44.98 | O60: 2.74
B62: ВТОРНИК
A63: № 88 Сбор.рец. На прод-ию для обуч. Во всех образ.учреж-Дели 2017 | B63: Щи из свежей капусты с картофелем, с мясом и сметаной | C63: 250/10/5 | D63: 4.70 | E63: 6.08 | F63: 8.13 | G63: 112.68 | H63: 0.07 | I63: 15.85 | J63: 5.00 | K63: 2.42 | L63: 54.93 | M63: 74.97 | N63: 25.54 | O63: 1.07
A65: № 349 Сбор.рец. На прод-ию для обуч. Во всех образ.учреж-Дели 2017 | B65: Компот из сухофруктов | C65: 200 | D65: 0.83 | E65: 0.11 | F65: 40.02 | G65: 166.00 | H65: 0.02 | I65: 0.91 | J65: 0.00 | K65: 0.64 | L65: 40.60 | M65: 29.30 | N65: 21.83 | O65: 0.87
A66: табл 6 стр 134,144,Хим. Состав и калорийность российских продуктов питания Дели + 2012 | B66: Хлеб ржаной | C66: 30 | D66: 1.98 | E66: 0.36 | F66: 11.88 | G66: 59.40 | H66: 0.05 | I66: 0.00 | J66: 0.00 | K66: 0.42 | L66: 8.70 | M66: 45.00 | N66: 14.10 | O66: 1.17
B67: Итого: | C67: 495 | D67: =D65+D63+D66 -> 7.50 | E67: =E65+E63+E66 -> 6.55 | F67: 60.03 | G67: 338.08 | H67: 0.14 | I67: 16.75 | J67: 5.00 | K67: 3.47 | L67: 104.23 | M67: 149.27 | N67: 61.47 | O67: 3.11
B69: СРЕДА
A70: № 86 Сбор.рец. На прод-ию для обуч. Во всех образ.учреж-Дели 2016 | B70: Суп с рисовой крупой и мясными фрикадельками | C70: 250/10 | D70: 4.31 | E70: 4.59 | F70: 14.61 | G70: 116.95 | H70: 0.10 | I70: 8.49 | J70: 5.82 | K70: 1.35 | L70: 28.41 | M70: 78.95 | N70: 27.03 | O70: 1.07
A72: ТТК составлена на основании акта проработки 2019 г от 29.10.19 | B72: Напиток из шиповника | C72: 200 | D72: 0.68 | E72: 0.28 | F72: 20.76 | G72: 88.20 | H72: 0.01 | I72: 100.00 | J72: 0.00 | K72: 0.76 | L72: 21.34 | M72: 3.44 | N72: 3.44 | O72: 0.63
A73: табл 6 стр 134,144,Хим. Состав и калорийность российских продуктов питания Дели + 2012 | B73: Хлеб ржаной | C73: 30 | D73: 1.98 | E73: 0.36 | F73: 11.88 | G73: 59.40 | H73: 0.05 | I73: 0.00 | J73: 0.00 | K73: 0.42 | L73: 8.70 | M73: 45.00 | N73: 14.10 | O73: 1.17
B74: Итого: | C74: 490 | D74: =D72+D70+D73 -> 6.97 | E74: =E72+E70+E73 -> 5.23 | F74: 47.25 | G74: 264.55 | H74: 0.16 | I74: 108.49 | J74: 5.82 | K74: 2.53 | L74: 58.45 | M74: 127.39 | N74: 44.57 | O74: 2.87
B75: ЧЕТВЕРГ
A76: № 102 Сбор.рец. На прод-ию для обуч. Во всех образ.учреж-Дели 2017 | B76: Суп картофельный с горохом, с куриными фрикадельками | C76: 250/10 | D76: 6.85 | E76: 6.59 | F76: 17.33 | G76: 168.85 | H76: 0.23 | I76: 5.93 | J76: 3.98 | K76: 2.45 | L76: 47.28 | M76: 98.51 | N76: 37.02 | O76: 2.16
A77: № 376 Сбор.рец. На прод-ию для обуч. Во всех образ.учреж-Дели 2017 | B77: Чай с сахаром | C77: 190/10 | D77: 0.07 | E77: 0.02 | F77: 15 | G77: 60.00 | I77: 0.03 | L77: 11.1 | M77: 2.8 | N77: 1.4 | O77: 0.28
A78: табл 6 стр 134,144,Хим. Состав и калорийность российских продуктов питания Дели + 2012 | B78: Хлеб ржаной | C78: 30 | D78: 1.98 | E78: 0.36 | F78: 11.88 | G78: 59.40 | H78: 0.05 | I78: 0.00 | J78: 0.00 | K78: 0.42 | L78: 8.70 | M78: 45.00 | N78: 14.10 | O78: 1.17
B79: Итого: | C79: 490 | D79: =D77+D76+D78 -> 8.90 | E79: =E77+E76+E78 -> 6.97 | F79: 44.21 | G79: 288.25 | H79: 0.28 | I79: 5.96 | J79: 3.98 | K79: 2.87 | L79: 67.08 | M79: 146.31 | N79: 52.52 | O79: 3.61
B80: ПЯТНИЦА
A82: № 95Сбор.рец. На прод-ию для обуч. Во всех образ.учреж-Дели 2017 | B82: Рассольник домашний с мясными фрикадельками | C82: 250/10 | D82: 4.43 | E82: 6.95 | F82: 12.72 | G82: 140.70 | H82: 0.10 | I82: 13.36 | J82: 5.82 | K82: 2.47 | L82: 45.11 | M82: 82.23 | N82: 30.10 | O82: 1.26
A83: ТТК | B83: Компот из изюма и урюка | C83: 200 | D83: 0.55 | E83: 0.07 | F83: 28.89 | G83: 119.30 | H83: 0.02 | I83: 0.30 | J83: 0.00 | K83: 0.45 | L83: 26.77 | M83: 21.08 | N83: 13.14 | O83: 0.47
A84: табл 6 стр 134,144,Хим. Состав и калорийность российских продуктов питания Дели + 2012 | B84: Хлеб ржаной | C84: 30 | D84: 1.98 | E84: 0.36 | F84: 11.88 | G84: 59.40 | H84: 0.05 | I84: 0.00 | J84: 0.00 | K84: 0.42 | L84: 8.70 | M84: 45.00 | N84: 14.10 | O84: 1.17
B85: Итого: | C85: 490 | D85: =D83+D82+D84 -> 7.0 | E85: =E83+E82+E84 -> 7.4 | F85: 53.5 | G85: 319.4 | H85: 0.2 | I85: 13.7 | J85: 5.8 | K85: 3.3 | L85: 80.6 | M85: 148.3 | N85: 57.3 | O85: 2.9
B87: СУББОТА
A88: Акт проработки от 16.02.2019 | B88: Солянка | C88: 250 | D88: 8.03 | E88: 9.15 | F88: 7.19 | G88: 168.63 | H88: 0.06 | I88: 0.80 | J88: 5.88 | K88: 1.58 | L88: 23.73 | M88: 56.55 | N88: 16.75 | O88: 0.58
A90: №376 Сбор.рец. На прод-ию для обуч. Во всех образ.учреж-Дели 2017 | B90: Чай с мармеладом | C90: 190/10 | D90: 0.11 | E90: 0.02 | F90: 12.73 | G90: 51.30 | H90: 0.00 | I90: 0.10 | J90: 0.00 | K90: 0.00 | L90: 4.87 | M90: 3.65 | N90: 2.35 | O90: 0.43
A91: табл 6 стр 134,144,Хим. Состав и калорийность российских продуктов питания Дели + 2012 | B91: Хлеб ржаной | C91: 30 | D91: 1.98 | E91: 0.36 | F91: 11.88 | G91: 59.40 | H91: 0.05 | I91: 0.00 | J91: 0.00 | K91: 0.42 | L91: 8.70 | M91: 45.00 | N91: 14.10 | O91: 1.17
B93: Всего: | C93: 480 | D93: =D90+D88+D91 -> 10.12 | E93: =E90+E88+E91 -> 9.53 | F93: 31.80 | G93: 279.33 | H93: 0.11 | I93: 0.90 | J93: 5.88 | K93: 2.00 | L93: 37.29 | M93: 105.20 | N93: 33.20 | O93: 2.17
B95: Всего за 6 дней 2 недели: | C95: =C60+C67+C74+C79+C85+C93 -> 2935 | D95: =D60+D67+D74+D79+D85+D93 -> 46.60571014 | E95: 40.18905797 | F95: 277.0704348 | G95: 1729.187681 | H95: 1.030333333 | I95: 156.1428478 | J95: 30.475 | K95: 16.07 | L95: 403.3868986 | M95: 803.4188406 | N95: 294.0694928 | O95: 17.40642029
B96: Всего за 12 дней: | C96: =C11+C17+C24+C31+C39+C45+C60+C67+C74+C79+C85+C93 -> 5895 | D96: 86.25 | E96: 84.40611594 | F96: 557.2548696 | G96: 3451.425362 | H96: 1.785666667 | I96: 295.2016957 | J96: 109.445 | K96: 34.819 | L96: 826.8337971 | M96: 1520.577681 | N96: 552.2319855 | O96: 33.63134058
B97: В среднем на 1 учащегося в день | C97: =C96/12 -> 491 | D97: =D96/12 -> 7.19 | E97: =E96/12 -> 7.03 | F97: 46.44 | G97: 287.62 | H97: 0.15 | I97: 24.60 | J97: 9.12 | K97: 2.90 | L97: 68.90 | M97: 126.71 | N97: 46.02 | O97: 2.80
